[Event "Skalica Rapid 2020"]
[Site "Skalica"]
[Date "2020.08.29"]
[Round "1.1"]
[White "Bidulsky, Matej"]
[Black "Kubat, Pavel"]
[Result "1-0"]
[ECO "B57"]
[WhiteElo "1548"]
[BlackElo "2066"]
[Annotator "ChessBase"]
[PlyCount "122"]
[EventDate "2020.08.29"]
[EventType "swiss"]
[EventCountry "SVK"]
[SourceTitle "playchess.com"]
[Source "ChessBase"]
[SourceQuality "1"]
[TimeControl "600+5"]

1. e4 {[%emt 0:00:00]} c5 {[%emt 0:00:00]} 2. Bc4 {[%emt 0:00:04]} Nc6 {[%emt 0:00:03]} 3. Nf3 {[%emt 0:00:02]} d6 {[%emt 0:00:10]} 4. d4 {[%emt 0:00:03]} cxd4 {[%emt 0:00:06]} 5. Nxd4 {[%emt 0:00:02]} Nf6 {[%emt 0:00:02]} 6. Nc3 {[%emt 0:00:02]} g6 {[%emt 0:00:08]} 7. O-O {[%emt 0:00:17]} Bg7 {[%emt 0:00:01]} 8. Re1 {[%emt 0:00:03]} O-O {[%emt 0:00:28]} 9. h3 {[%emt 0:00:35]} Bd7 {[%emt 0:00:34]} 10. Nf3 {[%emt 0:00:31]} Rc8 {[%emt 0:00:05]} 11. Bb5 {[%emt 0:00:27]} a6 {[%emt 0:00:02]} 12. Ba4 {[%emt 0:00:02]} b5 {[%emt 0:00:02]} 13. Bb3 {[%emt 0:00:01]} Ne8 {[%emt 0:00:24]} 14. Nd5 {[%emt 0:00:20]} Nc7 {[%emt 0:00:05]} 15. c3 {[%emt 0:00:05]} Ne6 {[%emt 0:00:05]} 16. Ng5 {[%emt 0:00:16]} h6 {[%emt 0:00:09]} 17. Nf3 {[%emt 0:00:10]} Nc5 {[%emt 0:00:01]} 18. Bc2 {[%emt 0:00:04]} Kh7 {[%emt 0:00:12]} 19. Be3 {[%emt 0:00:13]} Na5 {[%emt 0:00:23]} 20. b4 {[%emt 0:03:36]} e6 {[%emt 0:00:00]} 21. Nf4 {[%emt 0:00:01]} Ncb7 {[%emt 0:01:36]} 22. bxa5 {[%emt 0:00:22]} Bxc3 {[%emt 0:00:01]} 23. Qd3 {[%emt 0:00:32]} Bxa1 {[%emt 0:01:13]} 24. Rxa1 {[%emt 0:00:18]} e5 {[%emt 0:00:24]} 25. Nd5 {[%emt 0:00:07]} Nc5 {[%emt 0:00:07]} 26. Qd2 {[%emt 0:00:16]} g5 {[%emt 0:01:58]} 27. Nb6 {[%emt 0:00:06]} Rc6 {[%emt 0:00:23]} 28. Bxc5 {[%emt 0:01:09]} Rxc5 {[%emt 0:00:04]} 29. Qxd6 {[%emt 0:00:14]} Rxc2 {[%emt 0:00:01]} 30. Nxd7 {[%emt 0:00:07]} Kg7 {[%emt 0:00:45]} 31. Qxf8+ {[%emt 0:00:04]} Qxf8 {[%emt 0:00:03]} 32. Nxf8 {[%emt 0:00:01]} Kxf8 {[%emt 0:00:02]} 33. Nxe5 {[%emt 0:00:01]} Ke7 {[%emt 0:00:15]} 34. Ng4 {[%emt 0:00:06]} Rc4 {[%emt 0:00:47]} 35. f3 {[%emt 0:00:12]} h5 {[%emt 0:00:05]} 36. Ne3 {[%emt 0:00:01]} Ra4 {[%emt 0:00:00]} 37. Kf2 {[%emt 0:00:12]} Rxa5 {[%emt 0:00:01]} 38. Ke2 {[%emt 0:00:01]} b4 {[%emt 0:00:14]} 39. Nd5+ {[%emt 0:00:02]} Ke6 {[%emt 0:00:10]} 40. Nxb4 {[%emt 0:00:02]} Ra4 {[%emt 0:00:36]} 41. Nd3 {[%emt 0:00:04]} Ra3 {[%emt 0:00:16]} 42. Kd2 {[%emt 0:00:07]} f5 {[%emt 0:00:02]} 43. Kc2 {[%emt 0:00:12]} g4 {[%emt 0:00:09]} 44. hxg4 {[%emt 0:01:19]} hxg4 {[%emt 0:00:14]} 45. fxg4 {[%emt 0:00:02]} fxe4 {[%emt 0:00:08]} 46. Nc5+ {[%emt 0:00:11]} Kd5 {[%emt 0:00:16]} 47. Nb3 {[%emt 0:00:03]} Ke5 {[%emt 0:00:14]} 48. Kb2 {[%emt 0:00:03]} Ra4 {[%emt 0:00:01]} 49. Re1 {[%emt 0:00:02]} Kf4 {[%emt 0:00:16]} 50. Nc5 {[%emt 0:00:01]} Rb4+ {[%emt 0:00:10]} 51. Kc3 {[%emt 0:00:01]} a5 {[%emt 0:00:03]} 52. Rxe4+ {[%emt 0:00:05]} Rxe4 {[%emt 0:00:18]} 53. Nxe4 Kxe4 {[%emt 0:00:03]} 54. Kc4 {[%emt 0:00:02]} Kf4 {[%emt 0:00:19]} 55. Kb5 {[%emt 0:00:01]} Kxg4 {[%emt 0:00:01]} 56. Kxa5 {[%emt 0:00:01]} Kg3 {[%emt 0:00:01]} 57. Kb6 {[%emt 0:00:01]} Kxg2 {[%emt 0:00:01]} 58. a4 {[%emt 0:00:00]} Kf3 {[%emt 0:00:01]} 59. a5 {[%emt 0:00:01]} Ke4 {[%emt 0:00:01]} 60. a6 {[%emt 0:00:01]} Kd5 {[%emt 0:00:00]} 61. a7 {[%emt 0:00:00]} Kd4 1-0

[Event "Skalica Rapid 2020"]
[Site "Skalica"]
[Date "2020.08.29"]
[Round "1.3"]
[White "Striskova, Lucia"]
[Black "Vadila, Ondrej"]
[Result "1/2-1/2"]
[ECO "B35"]
[WhiteElo "1706"]
[BlackElo "2057"]
[Annotator "ChessBase"]
[PlyCount "116"]
[EventDate "2020.08.29"]
[EventType "swiss"]
[EventCountry "SVK"]
[SourceTitle "playchess.com"]
[Source "ChessBase"]
[SourceQuality "1"]
[TimeControl "600+5"]

1. e4 {[%emt 0:00:00]} c5 {[%emt 0:00:00]} 2. Nf3 {[%emt 0:00:00]} g6 {[%emt 0:00:00]} 3. d4 {[%emt 0:00:00]} cxd4 {[%emt 0:00:00]} 4. Nxd4 {[%emt 0:00:02]} Bg7 {[%emt 0:00:01]} 5. Be3 {[%emt 0:00:04]} Nc6 {[%emt 0:00:09]} 6. Nc3 {[%emt 0:00:10]} Nf6 {[%emt 0:00:03]} 7. Bc4 {[%emt 0:00:14]} Qa5 {[%emt 0:00:03]} 8. f3 {[%emt 0:00:29]} Qb4 {[%emt 0:00:03]} 9. Nxc6 {[%emt 0:00:50]} Qxc4 {[%emt 0:00:08]} 10. Na5 {[%emt 0:00:18]} Qa6 {[%emt 0:00:23]} 11. Nb3 d6 {[%emt 0:00:08]} 12. Qe2 {[%emt 0:00:05]} Qxe2+ {[%emt 0:00:13]} 13. Kxe2 {[%emt 0:00:09]} O-O {[%emt 0:00:04]} 14. Rad1 {[%emt 0:00:09]} Be6 {[%emt 0:00:06]} 15. Rd2 {[%emt 0:00:13]} Nd7 {[%emt 0:01:18]} 16. Nd4 {[%emt 0:00:25]} Bc4+ {[%emt 0:00:10]} 17. Kf2 {[%emt 0:00:05]} Rac8 {[%emt 0:00:37]} 18. b3 {[%emt 0:00:20]} Ba6 {[%emt 0:00:13]} 19. Nd5 {[%emt 0:00:01]} Rfe8 {[%emt 0:00:02]} 20. c4 {[%emt 0:00:37]} b6 {[%emt 0:00:34]} 21. Nc2 {[%emt 0:00:43]} Bb7 {[%emt 0:00:43]} 22. Bg5 {[%emt 0:00:59]} Kf8 {[%emt 0:00:50]} 23. Ncb4 {[%emt 0:00:37]} Nc5 {[%emt 0:00:23]} 24. Nd3 {[%emt 0:00:48]} Ne6 {[%emt 0:01:03]} 25. Be3 {[%emt 0:00:32]} Kg8 {[%emt 0:00:28]} 26. N3f4 {[%emt 0:00:08]} Nc5 {[%emt 0:00:11]} 27. Ne2 {[%emt 0:00:49]} Rcd8 {[%emt 0:00:23]} 28. Bg5 {[%emt 0:00:16]} Rd7 {[%emt 0:00:21]} 29. h4 {[%emt 0:00:24]} h6 {[%emt 0:00:08]} 30. Be3 {[%emt 0:00:06]} Red8 {[%emt 0:00:16]} 31. h5 {[%emt 0:00:09]} g5 {[%emt 0:00:05]} 32. Bd4 {[%emt 0:00:21]} Bf8 {[%emt 0:01:28]} 33. Ng3 {[%emt 0:00:05]} Ne6 {[%emt 0:00:03]} 34. Bc3 {[%emt 0:00:23]} Bxd5 {[%emt 0:00:10]} 35. exd5 Nf4 36. Nf5 {[%emt 0:00:40]} e6 {[%emt 0:00:13]} 37. dxe6 {[%emt 0:00:26]} fxe6 {[%emt 0:00:05]} 38. Ne3 {[%emt 0:00:14]} d5 {[%emt 0:00:31]} 39. cxd5 {[%emt 0:00:28]} Nxd5 {[%emt 0:00:48]} 40. Nxd5 {[%emt 0:00:17]} Rxd5 {[%emt 0:00:13]} 41. Rxd5 {[%emt 0:00:37]} Rxd5 {[%emt 0:00:05]} 42. Re1 {[%emt 0:00:01]} Kf7 {[%emt 0:00:11]} 43. Re4 {[%emt 0:00:01]} Bc5+ {[%emt 0:00:05]} 44. Ke2 {[%emt 0:00:03]} b5 {[%emt 0:00:09]} 45. Be1 {[%emt 0:00:14]} Bb6 {[%emt 0:00:12]} 46. Bf2 {[%emt 0:00:05]} Bxf2 {[%emt 0:00:12]} 47. Kxf2 {[%emt 0:00:00]} Rd2+ {[%emt 0:00:03]} 48. Re2 {[%emt 0:00:01]} Rxe2+ {[%emt 0:00:09]} 49. Kxe2 {[%emt 0:00:01]} Kf6 {[%emt 0:00:01]} 50. Ke3 {[%emt 0:00:02]} Ke5 {[%emt 0:00:01]} 51. g3 {[%emt 0:00:05]} a5 {[%emt 0:00:06]} 52. a3 {[%emt 0:00:05]} a4 {[%emt 0:00:07]} 53. b4 {[%emt 0:00:18]} Kd5 {[%emt 0:00:05]} 54. Kd3 {[%emt 0:00:01]} Ke5 {[%emt 0:00:10]} 55. Ke3 {[%emt 0:00:00]} Kd5 {[%emt 0:00:10]} 56. Kd3 {[%emt 0:00:01]} Ke5 {[%emt 0:00:00]} 57. Ke3 {[%emt 0:00:01]} Kd5 {[%emt 0:00:07]} 58. Kd3 {[%emt 0:00:01]} Ke5 {[%emt 0:00:00]} 1/2-1/2

[Event "Skalica Rapid 2020"]
[Site "Skalica"]
[Date "2020.08.29"]
[Round "1.8"]
[White "Pniaczek, Marek"]
[Black "Gurevich, Michele"]
[Result "1-0"]
[ECO "C43"]
[WhiteElo "1969"]
[BlackElo "1107"]
[Annotator "ChessBase"]
[PlyCount "67"]
[EventDate "2020.08.29"]
[EventType "swiss"]
[EventCountry "SVK"]
[SourceTitle "playchess.com"]
[Source "ChessBase"]
[SourceQuality "1"]
[TimeControl "600+5"]

1. e4 {[%emt 0:00:00]} e5 {[%emt 0:00:00]} 2. Nf3 {[%emt 0:00:00]} Nf6 {[%emt 0:00:00]} 3. d4 {[%emt 0:00:06]} exd4 {[%emt 0:00:21]} 4. e5 {[%emt 0:00:01]} Qe7 {[%emt 0:00:17]} 5. Qxd4 {[%emt 0:01:08]} Nc6 {[%emt 0:00:17]} 6. Qf4 {[%emt 0:00:22]} d6 {[%emt 0:00:28]} 7. Bb5 {[%emt 0:00:22]} Nd5 {[%emt 0:01:27]} 8. Qe4 {[%emt 0:00:13]} Qe6 {[%emt 0:00:15]} 9. O-O {[%emt 0:00:34]} Be7 {[%emt 0:00:17]} 10. Nd4 {[%emt 0:00:43]} Nf6 {[%emt 0:00:36]} 11. Bxc6+ {[%emt 0:00:43]} Bd7 {[%emt 0:00:35]} 12. exf6 {[%emt 0:00:48]} Qxe4 {[%emt 0:00:15]} 13. Bxe4 {[%emt 0:00:04]} Bxf6 {[%emt 0:00:03]} 14. c3 {[%emt 0:00:24]} c5 {[%emt 0:00:05]} 15. Nf5 {[%emt 0:00:09]} Bxf5 {[%emt 0:00:13]} 16. Bxf5 {[%emt 0:00:03]} O-O {[%emt 0:00:03]} 17. Bf4 {[%emt 0:00:01]} Rad8 {[%emt 0:00:05]} 18. Nd2 {[%emt 0:00:02]} Rfe8 {[%emt 0:00:07]} 19. Ne4 {[%emt 0:00:02]} Be7 {[%emt 0:00:26]} 20. Rfe1 {[%emt 0:00:02]} Bf8 {[%emt 0:00:06]} 21. Nd2 {[%emt 0:00:12]} Be7 {[%emt 0:00:21]} 22. Kf1 {[%emt 0:00:02]} g6 {[%emt 0:00:05]} 23. Bd3 {[%emt 0:00:08]} a6 {[%emt 0:00:24]} 24. c4 {[%emt 0:00:19]} d5 {[%emt 0:00:43]} 25. cxd5 {[%emt 0:00:07]} Rxd5 {[%emt 0:00:04]} 26. Bc4 {[%emt 0:00:07]} Rd4 {[%emt 0:00:16]} 27. Be3 {[%emt 0:00:04]} Rdd8 {[%emt 0:00:48]} 28. a4 {[%emt 0:00:02]} Rc8 {[%emt 0:00:48]} 29. Ne4 {[%emt 0:00:06]} Bf8 {[%emt 0:00:34]} 30. Nf6+ {[%emt 0:00:04]} Kg7 {[%emt 0:00:10]} 31. Nxe8+ {[%emt 0:00:05]} Rxe8 {[%emt 0:00:02]} 32. Bh6+ {[%emt 0:00:02]} Kg8 {[%emt 0:00:09]} 33. Rxe8 {[%emt 0:00:02]} Kh8 {[%emt 0:00:16]} 34. Rxf8# 1-0

[Event "Skalica Rapid 2020"]
[Site "Skalica"]
[Date "2020.08.29"]
[Round "1.9"]
[White "Dubanova, Kristina"]
[Black "Beres, Dominik"]
[Result "0-1"]
[ECO "B10"]
[WhiteElo "1128"]
[BlackElo "1988"]
[Annotator "ChessBase"]
[PlyCount "63"]
[EventDate "2020.08.29"]
[EventType "swiss"]
[EventCountry "SVK"]
[SourceTitle "playchess.com"]
[Source "ChessBase"]
[SourceQuality "1"]
[TimeControl "600+5"]

1. e4 {[%emt 0:00:00]} c6 {[%emt 0:00:00]} 2. Nf3 {[%emt 0:00:08]} d6 {[%emt 0:00:00]} 3. Nc3 {[%emt 0:00:26]} Qc7 {[%emt 0:00:04]} 4. Bc4 {[%emt 0:00:18]} b5 {[%emt 0:00:08]} 5. Bb3 {[%emt 0:00:17]} Nf6 {[%emt 0:00:10]} 6. d3 {[%emt 0:00:41]} b4 {[%emt 0:00:37]} 7. Ne2 {[%emt 0:00:53]} h6 {[%emt 0:00:09]} 8. Ng3 {[%emt 0:00:34]} e5 {[%emt 0:00:10]} 9. Be3 {[%emt 0:01:03]} Nbd7 {[%emt 0:00:03]} 10. O-O {[%emt 0:00:46]} Nc5 {[%emt 0:00:06]} 11. Bxc5 {[%emt 0:01:39]} dxc5 {[%emt 0:00:03]} 12. h3 {[%emt 0:00:20]} Be7 {[%emt 0:00:05]} 13. Re1 {[%emt 0:00:38]} O-O {[%emt 0:00:04]} 14. c3 {[%emt 0:00:33]} a5 {[%emt 0:00:02]} 15. d4 {[%emt 0:01:06]} cxd4 {[%emt 0:00:18]} 16. cxd4 {[%emt 0:00:10]} Bd6 {[%emt 0:00:37]} 17. Rc1 {[%emt 0:00:48]} Bd7 {[%emt 0:00:10]} 18. Qd2 {[%emt 0:00:37]} Rad8 {[%emt 0:00:20]} 19. a3 {[%emt 0:00:26]} Rfe8 {[%emt 0:00:32]} 20. d5 {[%emt 0:00:08]} c5 {[%emt 0:00:08]} 21. Rc2 {[%emt 0:00:06]} a4 {[%emt 0:00:05]} 22. Bc4 {[%emt 0:00:05]} Rb8 {[%emt 0:00:14]} 23. Qd3 {[%emt 0:00:05]} Qa5 {[%emt 0:00:33]} 24. Qd2 {[%emt 0:00:06]} Bb5 {[%emt 0:00:14]} 25. Bxb5 {[%emt 0:00:03]} Qxb5 {[%emt 0:00:02]} 26. Rcc1 {[%emt 0:00:06]} bxa3 {[%emt 0:00:08]} 27. bxa3 {[%emt 0:00:06]} c4 {[%emt 0:00:01]} 28. Qc3 {[%emt 0:00:05]} Rec8 {[%emt 0:00:07]} 29. Qc2 {[%emt 0:00:06]} Qb3 {[%emt 0:00:08]} 30. Qd2 {[%emt 0:00:05]} Bxa3 {[%emt 0:00:19]} 31. Rcd1 {[%emt 0:00:05]} c3 {[%emt 0:00:09]} 32. Qd3 {[%emt 0:00:11]} 0-1

[Event "Skalica Rapid 2020"]
[Site "Skalica"]
[Date "2020.08.29"]
[Round "1.13"]
[White "Matejovic, Juraj"]
[Black "Gzib, David"]
[Result "1-0"]
[ECO "B87"]
[WhiteElo "2219"]
[BlackElo "1770"]
[Annotator "ChessBase"]
[PlyCount "31"]
[EventDate "2020.08.29"]
[EventType "swiss"]
[EventCountry "SVK"]
[SourceTitle "playchess.com"]
[Source "ChessBase"]
[SourceQuality "1"]
[TimeControl "600+5"]

1. e4 {[%emt 0:00:00]} c5 {[%emt 0:00:00]} 2. Nf3 {[%emt 0:00:00]} d6 {[%emt 0:00:00]} 3. d4 {[%emt 0:00:00]} cxd4 {[%emt 0:00:00]} 4. Nxd4 {[%emt 0:00:00]} Nf6 {[%emt 0:00:00]} 5. Nc3 {[%emt 0:00:00]} a6 {[%emt 0:00:01]} 6. Bc4 {[%emt 0:00:02]} e6 {[%emt 0:00:12]} 7. Bb3 {[%emt 0:00:01]} b5 {[%emt 0:00:07]} 8. Bg5 {[%emt 0:00:05]} Be7 {[%emt 0:00:05]} 9. Qf3 {[%emt 0:00:08]} Bb7 {[%emt 0:00:05]} 10. Bxe6 {[%emt 0:00:56]} fxe6 {[%emt 0:00:35]} 11. Nxe6 {[%emt 0:00:02]} Qd7 {[%emt 0:00:07]} 12. Nxg7+ {[%emt 0:00:25]} Kf7 {[%emt 0:00:04]} 13. Nf5 {[%emt 0:01:23]} d5 {[%emt 0:04:11]} 14. O-O-O {[%emt 0:01:48]} Kg6 {[%emt 0:02:54]} 15. Qg3 {[%emt 0:03:32]} Bd6 {[%emt 0:01:43]} 16. Bf4+ {[%emt 0:00:26]} 1-0

[Event "Skalica Rapid 2020"]
[Site "Skalica"]
[Date "2020.08.29"]
[Round "1.17"]
[White "Pekar Matus"]
[Black "Skreno Vladimir"]
[Result "0-1"]
[ECO "B22"]
[WhiteElo "1575"]
[BlackElo "2089"]
[Annotator "ChessBase"]
[PlyCount "64"]
[EventDate "2020.08.29"]
[EventType "swiss"]
[EventCountry "SVK"]
[SourceTitle "playchess.com"]
[Source "ChessBase"]
[SourceQuality "1"]
[TimeControl "600+5"]

1. e4 {[%emt 0:00:00]} c5 {[%emt 0:00:00]} 2. c3 {[%emt 0:00:01]} Nf6 {[%emt 0:00:00]} 3. e5 {[%emt 0:00:02]} Nd5 {[%emt 0:00:05]} 4. d4 {[%emt 0:00:01]} cxd4 {[%emt 0:00:00]} 5. Nf3 {[%emt 0:00:01]} e6 {[%emt 0:00:17]} 6. cxd4 {[%emt 0:00:12]} Nc6 {[%emt 0:00:04]} 7. Be2 {[%emt 0:00:09]} d6 {[%emt 0:00:06]} 8. Nc3 {[%emt 0:00:42]} Nxc3 {[%emt 0:00:03]} 9. bxc3 {[%emt 0:00:01]} dxe5 {[%emt 0:00:07]} 10. Be3 {[%emt 0:01:29]} exd4 {[%emt 0:00:19]} 11. Nxd4 {[%emt 0:00:14]} Be7 {[%emt 0:00:33]} 12. O-O {[%emt 0:01:11]} O-O {[%emt 0:00:06]} 13. Nxc6 {[%emt 0:00:18]} bxc6 {[%emt 0:00:03]} 14. Qc2 {[%emt 0:00:13]} g6 {[%emt 0:01:04]} 15. Rfe1 {[%emt 0:01:18]} Bf6 {[%emt 0:00:05]} 16. Bd3 {[%emt 0:00:05]} Qc7 {[%emt 0:00:22]} 17. Rad1 {[%emt 0:00:06]} Bb7 {[%emt 0:00:05]} 18. Bf1 {[%emt 0:00:13]} c5 {[%emt 0:00:14]} 19. Rd2 {[%emt 0:00:26]} Be5 {[%emt 0:01:02]} 20. g3 {[%emt 0:00:18]} Qc6 {[%emt 0:00:13]} 21. f3 {[%emt 0:00:52]} Rfd8 {[%emt 0:00:09]} 22. Red1 {[%emt 0:00:06]} Rxd2 {[%emt 0:00:09]} 23. Rxd2 {[%emt 0:00:01]} Qxf3 {[%emt 0:00:09]} 24. Bxc5 {[%emt 0:00:55]} Qh1+ {[%emt 0:00:15]} 25. Kf2 {[%emt 0:00:05]} Qxh2+ {[%emt 0:00:05]} 26. Ke1 {[%emt 0:00:11]} Qxg3+ {[%emt 0:00:28]} 27. Bf2 {[%emt 0:00:01]} Qxc3 {[%emt 0:00:13]} 28. Qb1 {[%emt 0:00:27]} Rd8 {[%emt 0:00:21]} 29. Bd3 {[%emt 0:00:10]} Bf4 {[%emt 0:00:13]} 30. Qc2 {[%emt 0:00:40]} Bxd2+ {[%emt 0:00:15]} 31. Qxd2 {[%emt 0:00:02]} Qxd2+ {[%emt 0:00:03]} 32. Kxd2 {[%emt 0:00:01]} Ba6 {[%emt 0:00:01]} 0-1

[Event "Skalica Rapid 2020"]
[Site "Skalica"]
[Date "2020.08.29"]
[Round "2.2"]
[White "Cedzo, Adam"]
[Black "Panko, Radoslav"]
[Result "0-1"]
[ECO "C01"]
[WhiteElo "1585"]
[BlackElo "2039"]
[Annotator "ChessBase"]
[PlyCount "90"]
[EventDate "2020.08.29"]
[EventType "swiss"]
[EventCountry "SVK"]
[SourceTitle "playchess.com"]
[Source "ChessBase"]
[SourceQuality "1"]
[TimeControl "600+5"]

1. e4 {[%emt 0:00:00]} e6 {[%emt 0:00:00]} 2. d4 {[%emt 0:00:02]} d5 {[%emt 0:00:00]} 3. exd5 {[%emt 0:00:01]} exd5 {[%emt 0:00:00]} 4. Nf3 {[%emt 0:00:24]} Nc6 {[%emt 0:00:02]} 5. Bf4 {[%emt 0:00:07]} Bg4 {[%emt 0:00:02]} 6. Bb5 {[%emt 0:00:07]} Bd6 {[%emt 0:00:05]} 7. Bxd6 {[%emt 0:00:44]} Qxd6 {[%emt 0:00:02]} 8. Bxc6+ {[%emt 0:00:13]} bxc6 {[%emt 0:00:16]} 9. c3 {[%emt 0:00:29]} Ne7 {[%emt 0:00:07]} 10. Nbd2 {[%emt 0:00:17]} Rb8 {[%emt 0:00:14]} 11. Qc2 {[%emt 0:00:03]} Qe6+ {[%emt 0:00:03]} 12. Kd1 {[%emt 0:00:24]} O-O {[%emt 0:00:31]} 13. Re1 {[%emt 0:00:13]} Qd6 {[%emt 0:00:08]} 14. h3 {[%emt 0:00:12]} Bf5 {[%emt 0:00:02]} 15. Qc1 {[%emt 0:00:25]} c5 {[%emt 0:00:13]} 16. dxc5 {[%emt 0:01:00]} Qxc5 {[%emt 0:00:02]} 17. Nb3 {[%emt 0:00:00]} Qd6 {[%emt 0:00:30]} 18. Nbd4 {[%emt 0:00:28]} c5 {[%emt 0:00:50]} 19. Nxf5 {[%emt 0:00:19]} Nxf5 {[%emt 0:00:03]} 20. Qd2 {[%emt 0:00:15]} d4 {[%emt 0:00:39]} 21. Re5 {[%emt 0:01:21]} Rxb2 {[%emt 0:00:47]} 22. Qd3 {[%emt 0:00:36]} dxc3 {[%emt 0:00:16]} 23. Rd5 {[%emt 0:00:13]} Qg6 {[%emt 0:00:49]} 24. Rxf5 {[%emt 0:02:11]} Qxg2 {[%emt 0:00:03]} 25. Ne1 {[%emt 0:00:27]} Qb7 {[%emt 0:01:54]} 26. Rxc5 {[%emt 0:00:59]} Rd2+ {[%emt 0:00:05]} 27. Qxd2 {[%emt 0:00:17]} cxd2 28. Kxd2 {[%emt 0:00:00]} Qb2+ {[%emt 0:00:10]} 29. Nc2 Rd8+ {[%emt 0:00:03]} 30. Ke2 {[%emt 0:00:08]} Qb7 {[%emt 0:00:21]} 31. Rc1 {[%emt 0:00:18]} g6 {[%emt 0:00:15]} 32. Ne3 {[%emt 0:00:01]} Qa6+ {[%emt 0:00:05]} 33. Kf3 {[%emt 0:00:08]} Qxa2 {[%emt 0:00:35]} 34. h4 {[%emt 0:00:01]} h5 {[%emt 0:00:18]} 35. R1c2 {[%emt 0:00:15]} Qa6 {[%emt 0:00:10]} 36. Nd5 {[%emt 0:00:08]} Qd3+ {[%emt 0:00:31]} 37. Ne3 {[%emt 0:00:01]} Rd7 {[%emt 0:00:23]} 38. R2c3 {[%emt 0:00:01]} Qd4 {[%emt 0:00:05]} 39. R3c4 {[%emt 0:00:16]} Qf6+ {[%emt 0:00:02]} 40. Ke2 {[%emt 0:00:02]} Qd6 {[%emt 0:00:17]} 41. Kf3 {[%emt 0:00:11]} Qd3 {[%emt 0:00:27]} 42. Rc3 {[%emt 0:00:01]} Qf1 {[%emt 0:00:03]} 43. R5c4 {[%emt 0:00:10]} Qh3+ {[%emt 0:00:04]} 44. Ke2 {[%emt 0:00:01]} Re7 {[%emt 0:00:19]} 45. Ra4 f5 {[%emt 0:00:19]} 0-1

[Event "Skalica Rapid 2020"]
[Site "Skalica"]
[Date "2020.08.29"]
[Round "2.3"]
[White "Pechac Jergus"]
[Black "Jablonicky Frantisek"]
[Result "1-0"]
[ECO "A87"]
[WhiteElo "2430"]
[BlackElo "2038"]
[Annotator "ChessBase"]
[PlyCount "61"]
[EventDate "2020.08.29"]
[EventType "swiss"]
[EventCountry "SVK"]
[SourceTitle "playchess.com"]
[Source "ChessBase"]
[SourceQuality "1"]
[TimeControl "600+5"]

1. d4 {[%emt 0:00:00]} f5 {[%emt 0:00:00]} 2. g3 {[%emt 0:00:00]} Nf6 {[%emt 0:00:00]} 3. Bg2 {[%emt 0:00:05]} g6 {[%emt 0:00:04]} 4. Nf3 {[%emt 0:00:00]} Bg7 {[%emt 0:00:01]} 5. O-O {[%emt 0:00:00]} O-O {[%emt 0:00:01]} 6. c4 {[%emt 0:00:01]} d6 {[%emt 0:00:00]} 7. Nc3 {[%emt 0:00:05]} Qe8 {[%emt 0:00:01]} 8. b3 {[%emt 0:00:00]} e5 {[%emt 0:00:00]} 9. dxe5 {[%emt 0:00:06]} dxe5 {[%emt 0:00:00]} 10. e4 {[%emt 0:00:03]} Nc6 {[%emt 0:00:26]} 11. Nd5 {[%emt 0:01:35]} Rf7 {[%emt 0:00:28]} 12. exf5 {[%emt 0:00:21]} gxf5 {[%emt 0:00:14]} 13. Bb2 {[%emt 0:00:10]} e4 {[%emt 0:00:51]} 14. Ng5 {[%emt 0:01:40]} Nxd5 {[%emt 0:00:20]} 15. cxd5 {[%emt 0:00:35]} Bxb2 {[%emt 0:03:40]} 16. Nxf7 {[%emt 0:00:16]} Bxa1 {[%emt 0:00:56]} 17. Qxa1 {[%emt 0:00:02]} Kxf7 {[%emt 0:00:21]} 18. dxc6 {[%emt 0:00:03]} Qxc6 {[%emt 0:00:08]} 19. Rc1 {[%emt 0:00:02]} Qd7 {[%emt 0:01:39]} 20. Rd1 {[%emt 0:00:32]} Qe8 {[%emt 0:00:15]} 21. Qc1 {[%emt 0:00:14]} Qe7 {[%emt 0:00:30]} 22. Qf4 {[%emt 0:00:47]} Kg6 {[%emt 0:00:58]} 23. g4 {[%emt 0:01:18]} Be6 {[%emt 0:00:01]} 24. gxf5+ {[%emt 0:00:19]} Bxf5 {[%emt 0:00:05]} 25. Kh1 {[%emt 0:00:03]} Rg8 {[%emt 0:00:08]} 26. Rc1 {[%emt 0:00:29]} Rc8 {[%emt 0:00:04]} 27. Rg1 {[%emt 0:00:05]} Kf6 {[%emt 0:00:09]} 28. Bh3 {[%emt 0:00:08]} Qe5 {[%emt 0:00:08]} 29. Qh6+ {[%emt 0:00:09]} Ke7 {[%emt 0:00:21]} 30. Rg7+ {[%emt 0:00:08]} Ke8 {[%emt 0:00:01]} 31. Qh5+ {[%emt 0:00:10]} 1-0

[Event "Skalica Rapid 2020"]
[Site "Skalica"]
[Date "2020.08.29"]
[Round "2.3"]
[White "Sobek, Michal"]
[Black "Pekar, Matus"]
[Result "1-0"]
[ECO "B01"]
[WhiteElo "2113"]
[BlackElo "1575"]
[Annotator "ChessBase"]
[PlyCount "43"]
[EventDate "2020.08.29"]
[EventType "swiss"]
[EventCountry "SVK"]
[SourceTitle "playchess.com"]
[Source "ChessBase"]
[SourceQuality "1"]
[TimeControl "600+5"]

1. e4 {[%emt 0:00:00]} d5 {[%emt 0:00:00]} 2. exd5 {[%emt 0:00:00]} Nf6 {[%emt 0:00:01]} 3. d4 {[%emt 0:00:07]} Nxd5 {[%emt 0:00:01]} 4. c4 {[%emt 0:00:04]} Nf6 {[%emt 0:00:06]} 5. Nf3 {[%emt 0:00:23]} Bf5 {[%emt 0:00:13]} 6. Nc3 {[%emt 0:00:06]} e6 {[%emt 0:00:09]} 7. Be2 {[%emt 0:00:13]} Be7 {[%emt 0:00:11]} 8. O-O {[%emt 0:00:06]} h6 {[%emt 0:00:13]} 9. b3 {[%emt 0:00:14]} O-O {[%emt 0:00:11]} 10. Bb2 {[%emt 0:00:01]} c6 {[%emt 0:00:46]} 11. Rc1 {[%emt 0:00:18]} Nbd7 {[%emt 0:00:04]} 12. Re1 {[%emt 0:01:05]} Re8 {[%emt 0:00:38]} 13. d5 {[%emt 0:00:09]} cxd5 {[%emt 0:00:38]} 14. cxd5 {[%emt 0:00:01]} exd5 {[%emt 0:00:45]} 15. Nxd5 {[%emt 0:00:02]} Nxd5 {[%emt 0:01:24]} 16. Qxd5 {[%emt 0:00:01]} Bg6 {[%emt 0:01:07]} 17. Red1 {[%emt 0:00:28]} Bf6 {[%emt 0:01:38]} 18. Bxf6 {[%emt 0:01:02]} Nxf6 {[%emt 0:00:05]} 19. Qxb7 {[%emt 0:00:03]} Qa5 {[%emt 0:00:20]} 20. Bc4 {[%emt 0:00:39]} Qxa2 {[%emt 0:00:39]} 21. Ne5 {[%emt 0:00:09]} Rf8 {[%emt 0:00:54]} 22. Nxg6 {[%emt 0:00:05]} 1-0